fUST/lending_fUST_20250803
["ID","MTS","AMOUNT","RATE_DAILY","PERIOD"]
[376989509,1754190643096,-460.0,0.00028079,10]
[376989512,1754190643106,-275.05804029,0.00028079,10]
[376989515,1754190643115,-521.89,0.00028079,10]
[376989517,1754190643125,-460.0,0.00028079,10]
[376989519,1754190643137,-500.0,0.00028079,10]
[376989522,1754190643146,-460.0,0.00028079,10]
[376989524,1754190643156,-460.0,0.00028079,10]
[376989526,1754190643165,-460.0,0.00028079,10]
[376989529,1754190643175,-418.4473068,0.00028079,2]
[376989530,1754190643185,-460.0,0.00028079,10]
[376989533,1754190643194,-460.0,0.00028079,10]
[376989535,1754190643203,-460.0,0.00028079,10]
[376989537,1754190643213,-460.0,0.00028079,10]
[376989539,1754190643222,-460.0,0.00028079,10]
[376989541,1754190643233,-152.113611,0.0002808,7]
[376989544,1754190643242,-151.702738,0.0002808,7]
[376989546,1754190643252,-151.0,0.0002808,7]
[376989547,1754190643262,-151.0,0.0002808,7]
[376989549,1754190643272,-151.323642,0.0002808,7]
[376989552,1754190643282,-216.32054205,0.0002808,7]
[376989554,1754190643291,-151.0,0.0002808,7]
[376989556,1754190643301,-151.0,0.0002808,7]
[376989558,1754190643311,-151.0,0.0002808,7]
[376989560,1754190643319,-151.0,0.0002808,7]
[376989562,1754190643329,-151.0,0.0002808,7]
[376989564,1754190643338,-151.0,0.0002808,7]
[376989566,1754190643348,-151.0,0.0002808,7]
[376989567,1754190643357,-151.0,0.0002808,7]
[376989570,1754190643368,-151.0,0.0002808,7]
[376989572,1754190643378,-160.883335,0.0002808,7]
[376989573,1754190643387,-152.102452,0.0002808,7]
[376989576,1754190643397,-151.0,0.0002808,7]
[376989578,1754190643408,-151.0,0.0002808,7]
[376989580,1754190643419,-151.0,0.0002808,7]
[376989582,1754190643428,-151.0,0.0002808,7]
[376989584,1754190643438,-151.0,0.0002808,7]
[376989586,1754190643447,-151.0,0.0002808,7]
[376989588,1754190643457,-151.0,0.0002808,7]
[376989590,1754190643467,-170.433645,0.0002808,7]
[376989592,1754190643476,-178.298816,0.0002808,7]
[376989594,1754190643487,-178.298816,0.0002808,7]
[376989596,1754190643497,-178.298816,0.0002808,7]
[376989598,1754190643507,-178.298816,0.0002808,7]
[376989600,1754190643518,-178.298816,0.0002808,7]
[376989602,1754190643527,-178.298816,0.0002808,7]
[376989604,1754190643537,-178.298816,0.0002808,7]
[376989606,1754190643547,-185.04437542,0.0002808,2]
[376989608,1754190643556,-151.0,0.0002808,7]
[376989610,1754190643566,-460.0,0.0002808,10]
[376989612,1754190643575,-460.0,0.0002808,10]
[376989614,1754190643585,-460.0,0.0002808,10]
[376989616,1754190643595,-460.0,0.0002808,10]
[376989618,1754190643605,-460.0,0.0002808,10]
[376989620,1754190643615,-460.0,0.0002808,10]
[376989622,1754190643624,-565.52,0.0002808,10]
[376989624,1754190643634,-194.4586279,0.0002808,10]
[376989626,1754190643643,-500.0,0.0002808,10]
[376989628,1754190643654,-500.0,0.0002808,10]
[376989631,1754190643663,-500.0,0.0002808,10]
[376989635,1754190643676,-500.0,0.0002808,10]
[376989638,1754190643687,-235.76,0.0002808,10]
[376989640,1754190643696,-576.48961114,0.0002808,10]
[376989642,1754190643705,-460.0,0.0002808,10]
[376989644,1754190643715,-460.0,0.0002808,10]
[376989646,1754190643724,-460.0,0.0002808,10]
[376989648,1754190643734,-460.0,0.0002808,10]
[376989650,1754190643743,-460.0,0.0002808,10]
[376989652,1754190643752,-460.0,0.0002808,10]
[376989654,1754190643762,-460.0,0.0002808,10]
[376989656,1754190643772,-460.0,0.0002808,10]
[376989658,1754190643782,-428.23,0.0002808,10]
[376989660,1754190643791,-460.0,0.0002808,10]
[376989662,1754190643801,-460.0,0.0002808,10]
[376989664,1754190643811,-240.5,0.0002808,10]
[376989666,1754190643820,-460.0,0.0002808,10]
[376989668,1754190643830,-460.0,0.0002808,10]
[376989670,1754190643839,-460.0,0.0002808,10]
[376989672,1754190643849,-460.0,0.0002808,10]
[376989674,1754190643859,-460.0,0.0002808,10]
[376989676,1754190643870,-460.0,0.0002808,10]
[376989678,1754190643879,-460.0,0.0002808,10]
[376989680,1754190643889,-198.00189984,0.0002808,10]
[376989682,1754190643899,-460.0,0.0002808,10]
[376989684,1754190643909,-460.0,0.0002808,10]
[376989686,1754190643918,-460.0,0.0002808,10]
[376989688,1754190643928,-460.0,0.0002808,10]
[376989690,1754190643937,-460.0,0.0002808,10]
[376989692,1754190643947,-460.0,0.0002808,10]
[376989694,1754190643956,-460.0,0.0002808,10]
[376989696,1754190643966,-460.0,0.0002808,10]
[376989698,1754190643976,-460.0,0.0002808,10]
[376989700,1754190643990,-460.0,0.0002808,10]
[376989702,1754190643999,-460.0,0.0002808,10]
[376989704,1754190644009,-460.0,0.0002808,10]
[376989706,1754190644018,-460.0,0.0002808,10]
[376989708,1754190644028,-467.82704204,0.0002808,10]
[376989710,1754190644037,-442.26,0.0002808,10]
[376989712,1754190644047,-460.0,0.0002808,10]
[376989714,1754190644056,-460.0,0.0002808,10]
[376989716,1754190644066,-460.0,0.0002808,10]
[376989718,1754190644076,-171.2766458,0.0002808,10]
[376989720,1754190644086,-460.0,0.0002808,10]
[376989722,1754190644096,-460.0,0.0002808,10]
[376989724,1754190644105,-460.0,0.0002808,10]
[376989726,1754190644115,-460.0,0.0002808,10]
[376989728,1754190644124,-460.0,0.0002808,10]
[376989730,1754190644134,-460.0,0.0002808,10]
[376989732,1754190644144,-460.0,0.0002808,10]
[376989734,1754190644153,-460.0,0.0002808,10]
[376989736,1754190644163,-460.0,0.0002808,10]
[376989738,1754190644172,-460.0,0.0002808,10]
[376989740,1754190644183,-460.0,0.0002808,10]
[376989742,1754190644193,-321.7,0.0002808,10]
[376989744,1754190644203,-200.46260399,0.0002808,10]
[376989746,1754190644212,-152.993786,0.00028081,7]
[376989748,1754190644222,-152.055011,0.00028081,7]
[376989750,1754190644232,-152.418429,0.00028081,7]
[376989752,1754190644242,-151.0,0.00028081,7]
[376989754,1754190644252,-151.0,0.00028081,7]
[376989756,1754190644262,-188.884798,0.00028081,7]
[376989758,1754190644272,-151.0,0.00028081,7]
[376989760,1754190644281,-151.0,0.00028081,7]
[376989762,1754190644291,-151.0,0.00028081,7]
[376989764,1754190644302,-215.815168,0.00028081,7]
[376989766,1754190644311,-900.85411544,0.00028081,7]
[376989768,1754190644321,-160.46320362,0.00028082,10]
[376989770,1754190644331,-1314.40051648,0.00028082,2]
[376989772,1754190644340,-108474.98403978,0.00028083,20]
[376989780,1754190644406,-77536.13251193,0.00028083,20]
[376990758,1754190860135,158.516913,0.00013699,2]
[376990759,1754190860345,158.516913,0.00020548,2]
[376990763,1754191551088,-1595.37191516,0.0002382,2]
[376990764,1754191602555,1945.66710203,0.00023061,2]
[376990765,1754191610090,-182.56933892,0.00023446,2]
[376990766,1754191635091,-321.09,0.00024233,2]
[376990767,1754191635114,-500.0,0.00024253,2]
[376990768,1754191635137,-321.09,0.00025,7]
[376990769,1754191635159,-321.09,0.00025878,7]
[376990770,1754191635180,-82.60912488,0.00025905,2]
[376990772,1754191731081,172.96683739,0.000263,120]
[376990773,1754191777513,1000.0,0.00027397,120]
[376990786,1754191831947,-500.0,0.00024253,2]
[376990787,1754191831958,-167.71915262,0.00025905,2]
[376990788,1754191831968,-1035.3270235,0.00026111,2]
[376990789,1754191831978,-500.0,0.00026445,2]
[376990790,1754191831990,-216.32054205,0.00026547,2]
[376990791,1754191831999,-490.0798253,0.00026699,2]
[376990792,1754191832010,-300.0,0.00026999,2]
[376990793,1754191832021,-1200.0,0.00026999,2]
[376990794,1754191832030,-5493.63448708,0.00027,2]
[376990795,1754191832043,-9858.18360712,0.00027,2]
[376990796,1754191832052,-664.75,0.000271,2]
[376990799,1754191832061,-151.0,0.00027333,7]
[376990802,1754191832072,-214.06,0.00027397,7]
[376990804,1754191832081,-158.516913,0.00027397,2]
[376990806,1754191832091,-210.33343386,0.00027397,2]
[376990809,1754191832101,-500.0,0.00027397,5]
[376990811,1754191832111,-151.0,0.00027483,7]
[376990814,1754191832121,-151.0,0.00027633,7]
[376990818,1754191832131,-97.92557575,0.00027782,7]
[376990820,1754191832144,-53.07442425,0.00027782,7]
[376990821,1754191832155,-214.06,0.00027841,7]
[376990823,1754191832164,-207.79400021,0.00027845,2]
[376990825,1754191832174,-151.0,0.00027932,7]
[376990827,1754191832184,-474.03334484,0.00027945,10]
[376990829,1754191832193,-409.09704687,0.00027945,10]
[376990830,1754191832205,-55.30338828,0.00027945,10]
[376990831,1754191832215,-456.41296358,0.00027945,10]
[376990833,1754191832228,-56.7152602,0.00027945,10]
[376990835,1754191832237,-462.171742,0.00027945,10]
[376990837,1754191832247,-460.0,0.00027945,10]
[376990839,1754191832256,-460.0,0.00027945,10]
[376990841,1754191832266,-174.79,0.00027945,10]
[376990843,1754191832277,-469.29184274,0.00027945,10]
[376990845,1754191832287,-572.04404519,0.00027945,3]
[376990847,1754191832297,-402.13409213,0.00027945,10]
[376990849,1754191832307,-465.32062918,0.00027945,10]
[376990851,1754191832316,-460.0,0.00027945,10]
[376990853,1754191832326,-466.54764674,0.00027945,10]
[376990855,1754191832337,-460.0,0.00027945,10]
[376990857,1754191832346,-471.07426519,0.00027945,10]
[376990859,1754191832356,-460.0,0.00027945,10]
[376990861,1754191832365,-460.0,0.00027945,10]
[376990863,1754191832375,-460.0,0.00027945,10]
[376990865,1754191832386,-215.26461387,0.00027945,10]
[376990867,1754191832395,-460.0,0.00027945,10]
[376990869,1754191832404,-460.0,0.00027945,10]
[376990871,1754191832413,-460.0,0.00027945,10]
[376990873,1754191832422,-460.0,0.00027945,10]
[376990875,1754191832432,-460.0,0.00027945,10]
[376990877,1754191832441,-387.59999498,0.00027945,10]
[376991162,1754191837765,-72.40000502,0.00027945,10]
[376991164,1754191837774,-460.0,0.00027945,10]
[376991165,1754191837784,-460.0,0.00027945,10]
[376991167,1754191837795,-460.0,0.00027945,10]
[376991169,1754191837804,-460.0,0.00027945,10]
[376991171,1754191837814,-460.0,0.00027945,10]
[376991172,1754191837824,-460.0,0.00027945,10]
[376991175,1754191837834,-460.0,0.00027945,10]
[376991176,1754191837845,-460.0,0.00027945,10]
[376991178,1754191837855,-460.0,0.00027945,10]
[376991180,1754191837864,-208.62404131,0.00027945,10]
[376991182,1754191837874,-460.0,0.00027945,10]
[376991184,1754191837883,-460.0,0.00027945,10]
[376991186,1754191837892,-460.0,0.00027945,10]
[376991188,1754191837902,-460.0,0.00027945,10]
[376991190,1754191837911,-460.0,0.00027945,10]
[376991192,1754191837921,-460.0,0.00027945,10]
[376991194,1754191837930,-460.0,0.00027945,10]
[376991197,1754191837939,-460.0,0.00027945,10]
[376991200,1754191837949,-460.0,0.00027945,10]
[376991203,1754191837959,-377.8,0.00027945,10]
[376991206,1754191837968,-470.95776432,0.00027945,10]
[376991207,1754191837977,-460.0,0.00027945,10]
[376991208,1754191837987,-467.14144105,0.00027945,10]
[376991209,1754191837996,-507.4273291,0.00027945,10]
[376991210,1754191838008,-35.1726709,0.00027945,10]
[376991211,1754191838018,-460.0,0.00027945,10]
[376991212,1754191838028,-460.0,0.00027945,10]
[376991213,1754191838037,-34.99903154,0.00027945,10]
[376991214,1754191838049,-296.71841889,0.00027945,10]
[376991215,1754191838059,-461.37432058,0.00027945,10]
[376991216,1754191838069,-312.07440098,0.00027945,10]
[376991217,1754191838080,-153.01871395,0.00027945,10]
[376991218,1754191838090,-460.0,0.00027945,10]
[376991219,1754191838100,-359.71478216,0.00027945,10]
[376991220,1754191838110,-460.0,0.00027945,10]
[376991221,1754191838120,-250.56034087,0.00027945,10]
[376991222,1754191838130,-409.26036492,0.00027945,10]
[376991223,1754191838142,-50.73963508,0.00027945,10]
[376991224,1754191838153,-529.13858728,0.00027945,10]
[376991225,1754191838162,-534.920261,0.00027945,10]
[376991226,1754191838172,-461.39044425,0.00027945,10]
[376991227,1754191838182,-460.0,0.00027945,10]
[376991228,1754191838193,-460.0,0.00027945,10]
[376991229,1754191838202,-460.0,0.00027945,10]
[376991230,1754191838213,-460.0,0.00027945,10]
[376991231,1754191838222,-460.0,0.00027945,10]
[376991232,1754191838232,-327.89804029,0.00027945,10]
[376991233,1754191838242,-460.0,0.00027945,10]
[376991234,1754191838251,-460.0,0.00027945,10]
[376991235,1754191838260,-460.0,0.00027945,10]
[376991236,1754191838270,-473.44833913,0.00027945,10]
[376991237,1754191838279,-402.29277943,0.00027945,10]
[376991238,1754191838289,-460.0,0.00027945,10]
[376991239,1754191838298,-460.0,0.00027945,10]
[376991240,1754191838309,-460.0,0.00027945,10]
[376991241,1754191838318,-460.0,0.00027945,10]
[376991242,1754191838328,-460.0,0.00027945,10]
[376991243,1754191838337,-460.0,0.00027945,10]
[376991244,1754191838347,-460.0,0.00027945,10]
[376991245,1754191838356,-460.0,0.00027945,10]
[376991246,1754191838366,-460.0,0.00027945,10]
[376991247,1754191838375,-440.38231785,0.00027945,10]
[376991430,1754191846146,-19.61768215,0.00027945,10]
[376991432,1754191846156,-460.0,0.00027945,10]
[376991434,1754191846168,-460.0,0.00027945,10]
[376991436,1754191846178,-60.38231785,0.00027945,10]
[376991667,1754192052005,163.174182,0.00013699,2]
[376991668,1754192052227,163.174182,0.00021404,2]
[376991675,1754192627746,163.0,0.00022,2]
[376991677,1754192662786,470.23811395,0.00022,2]
[376991678,1754192732087,-382.01,0.00023811,2]
[376991679,1754192732109,-500.0,0.00024253,2]
[376991680,1754192732132,-382.01,0.0002462,2]
[376991681,1754192732154,-164.0,0.00025,7]
[376991682,1754192732181,-176.99,0.00025348,7]
[376991683,1754192732206,-224.73440946,0.00025429,7]
[376991684,1754192817090,-178.86930261,0.00025429,7]
[376991685,1754192842150,-375.69751823,0.00025348,2]
[376991686,1754192842173,-93.28069739,0.00025429,7]
[376991687,1754192842198,-176.99,0.00025448,7]
[376991688,1754192842225,-177.0,0.00025548,7]
[376991689,1754192842248,-150.0,0.00025845,2]
[376991690,1754192842271,-272.15,0.00026044,7]
[376991691,1754192842293,-160.0,0.0002644,2]
[376991692,1754192842314,-196.06794463,0.00026445,2]
[376991732,1754193032190,-303.93205537,0.00026445,2]
[376991734,1754193032200,-235.11905697,0.00026445,2]
[376991736,1754193032211,-211.67,0.00026445,7]
[376991738,1754193032220,-841.87402298,0.00026512,2]
[376991740,1754193032230,-460.95174316,0.00026515,2]
[376991742,1754193032239,-300.0,0.00026515,2]
[376991745,1754193032248,-160.0,0.00026516,2]
[376991747,1754193032258,-12649.34751639,0.00026516,2]
[376991749,1754193032268,-574.07411547,0.00026672,5]
[376991751,1754193032279,-211.67,0.00026946,7]
[376991753,1754193032289,-7337.1090471,0.00027,2]
[376991755,1754193032299,-302.26452616,0.00027,2]
[376991756,1754193032308,-170.0816215,0.00027239,2]
[376991758,1754193032318,-211.67,0.00027397,7]
[376991760,1754193032329,-203.4378837,0.00027397,2]
[376991762,1754193032338,-500.0,0.00027397,5]
[376991763,1754193032348,-623.3043258,0.000276,2]
[376991765,1754193032357,-628.3,0.000276,2]
[376991767,1754193032367,-200.0,0.00027841,15]
[376991768,1754193032377,-300.0,0.00027841,15]
[376991770,1754193032388,-11941.3051811,0.00027935,2]
[376991772,1754193032398,-500.0,0.00027944,2]
[376991774,1754193032408,-154.42353487,0.00027944,2]
[376991775,1754193032417,-253.43232094,0.00027944,2]
[376991777,1754193032429,-646.46495848,0.00027944,2]
[376991779,1754193032439,-450.0,0.00027944,2]
[376991781,1754193032448,-2833.08,0.00027944,2]
[376991782,1754193032458,-3965.33137924,0.00027945,2]
[376991784,1754193032471,-162.025,0.00027945,18]
[376991786,1754193032481,-178.89066111,0.00027945,18]
[376991788,1754193032490,-554.94047346,0.00027945,10]
[376991790,1754193032500,-460.0,0.00027945,10]
[376991791,1754193032509,-302.4546015,0.00027945,10]
[376991793,1754193032519,-460.0,0.00027945,10]
[376991795,1754193032528,-460.0,0.00027945,10]
[376991796,1754193032538,-460.0,0.00027945,10]
[376991798,1754193032548,-460.0,0.00027945,10]
[376991800,1754193032558,-460.0,0.00027945,10]
[376991802,1754193032568,-460.0,0.00027945,10]
[376991803,1754193032578,-460.0,0.00027945,10]
[376991805,1754193032587,-471.47985654,0.00027945,10]
[376991807,1754193032596,-460.0,0.00027945,10]
[376991809,1754193032606,-460.0,0.00027945,10]
[376991811,1754193032616,-460.0,0.00027945,10]
[376991813,1754193032625,-460.0,0.00027945,10]
[376991814,1754193032635,-460.0,0.00027945,10]
[376991817,1754193032649,-460.0,0.00027945,10]
[376991819,1754193032661,-460.0,0.00027945,10]
[376991820,1754193032670,-460.0,0.00027945,10]
[376991822,1754193032679,-460.0,0.00027945,10]
[376991824,1754193032689,-460.0,0.00027945,10]
[376991826,1754193032698,-460.0,0.00027945,10]
[376991827,1754193032708,-460.0,0.00027945,10]
[376991829,1754193032719,-460.0,0.00027945,10]
[376991831,1754193032730,-460.0,0.00027945,10]
[376991833,1754193032740,-473.58752885,0.00027945,10]
[376991835,1754193032749,-460.0,0.00027945,10]
[376991837,1754193032760,-460.0,0.00027945,10]
[376991838,1754193032769,-460.0,0.00027945,10]
[376991839,1754193032778,-460.0,0.00027945,10]
[376991841,1754193032787,-460.0,0.00027945,10]
[376991842,1754193032797,-460.0,0.00027945,10]
[376991843,1754193032807,-460.0,0.00027945,10]
[376991844,1754193032817,-460.0,0.00027945,10]
[376991846,1754193032827,-460.0,0.00027945,10]
[376991847,1754193032837,-460.0,0.00027945,10]
[376991849,1754193032846,-460.0,0.00027945,10]
[376991851,1754193032855,-460.0,0.00027945,10]
[376991852,1754193032865,-460.0,0.00027945,10]
[376991854,1754193032874,-460.0,0.00027945,10]
[376991856,1754193032884,-460.0,0.00027945,10]
[376991858,1754193032893,-207.25939913,0.00027945,10]
[376991859,1754193032903,-460.0,0.00027945,10]
[376991861,1754193032912,-460.0,0.00027945,10]
[376991863,1754193032922,-460.0,0.00027945,10]
[376991864,1754193032931,-162.95528619,0.00027945,10]
[376991866,1754193032940,-460.0,0.00027945,10]
[376991868,1754193032951,-460.0,0.00027945,10]
[376991869,1754193032961,-460.0,0.00027945,10]
[376991871,1754193032980,-460.0,0.00027945,10]
[376991873,1754193032990,-571.09177594,0.00027945,10]
[376991875,1754193033000,-460.0,0.00027945,10]
[376991876,1754193033010,-460.0,0.00027945,10]
[376991878,1754193033020,-460.0,0.00027945,10]
[376991880,1754193033030,-523.69,0.00027945,10]
[376991881,1754193033040,-463.33077549,0.00027945,10]
[376991883,1754193033050,-460.0,0.00027945,10]
[376991884,1754193033059,-219.43,0.00027945,10]
[376991886,1754193033069,-464.00223688,0.00027945,10]
[376991888,1754193033078,-460.0,0.00027945,10]
[376991890,1754193033088,-460.0,0.00027945,10]
[376991891,1754193033098,-460.0,0.00027945,10]
[376991893,1754193033108,-460.0,0.00027945,10]
[376991895,1754193033118,-460.65850261,0.00027945,10]
[376991896,1754193033128,-460.0,0.00027945,10]
[376991898,1754193033137,-460.0,0.00027945,10]
[376991900,1754193033147,-460.0,0.00027945,10]
[376991902,1754193033156,-460.0,0.00027945,10]
[376991903,1754193033166,-460.0,0.00027945,10]
[376991905,1754193033176,-460.0,0.00027945,10]
[376991907,1754193033185,-460.0,0.00027945,10]
[376991908,1754193033196,-567.21533396,0.00027945,10]
[376991910,1754193033206,-460.0,0.00027945,10]
[376991911,1754193033216,-461.9334455,0.00027945,10]
[376991913,1754193033226,-460.0,0.00027945,10]
[376991915,1754193033236,-460.0,0.00027945,10]
[376991916,1754193033246,-460.0,0.00027945,10]
[376991918,1754193033255,-460.0,0.00027945,10]
[376991920,1754193033265,-460.0,0.00027945,10]
[376991922,1754193033275,-460.0,0.00027945,10]
[376991923,1754193033287,-460.0,0.00027945,10]
[376991925,1754193033297,-460.0,0.00027945,10]
[376991927,1754193033306,-460.0,0.00027945,10]
[376991929,1754193033319,-460.0,0.00027945,10]
[376991930,1754193033337,-460.0,0.00027945,10]
[376991932,1754193033347,-460.0,0.00027945,10]
[376991934,1754193033356,-460.0,0.00027945,10]
[376991936,1754193033366,-460.0,0.00027945,10]
[376991937,1754193033376,-460.0,0.00027945,10]
[376991939,1754193033388,-460.0,0.00027945,10]
[376991941,1754193033399,-460.0,0.00027945,10]
[376991942,1754193033408,-460.0,0.00027945,10]
[376991944,1754193033419,-460.0,0.00027945,10]
[376991946,1754193033428,-460.0,0.00027945,10]
[376991948,1754193033438,-460.0,0.00027945,10]
[376991949,1754193033447,-466.00883996,0.00027945,10]
[376991951,1754193033457,-500.0,0.00027945,2]
[376991953,1754193033468,-500.0,0.00027945,2]
[376991954,1754193033477,-500.0,0.00027945,2]
[376991956,1754193033487,-504.9,0.00027945,2]
[376991958,1754193033497,-481.36,0.00027945,10]
[376991960,1754193033507,-460.0,0.00027945,10]
[376991961,1754193033517,-468.29079792,0.00027945,10]
[376991963,1754193033527,-460.0,0.00027945,10]
[376991965,1754193033537,-460.0,0.00027945,10]
[376991967,1754193033546,-460.0,0.00027945,10]
[376991968,1754193033556,-460.0,0.00027945,10]
[376991970,1754193033567,-460.0,0.00027945,10]
[376991972,1754193033577,-532.14974275,0.00027945,10]
[376991974,1754193033586,-440.08714519,0.00027945,10]
[376991975,1754193033596,-460.0,0.00027945,10]
[376991977,1754193033607,-297.64925509,0.00027945,10]
[376991979,1754193033617,-460.0,0.00027945,10]
[376991980,1754193033626,-460.0,0.00027945,10]
[376991982,1754193033636,-460.0,0.00027945,10]
[376991983,1754193033645,-460.0,0.00027945,10]
[376991985,1754193033655,-460.0,0.00027945,10]
[376991987,1754193033665,-460.0,0.00027945,10]
[376991989,1754193033675,-460.0,0.00027945,10]
[376991990,1754193033684,-460.0,0.00027945,10]
[376991992,1754193033694,-460.0,0.00027945,10]
[376991994,1754193033704,-460.0,0.00027945,10]
[376991995,1754193033713,-460.0,0.00027945,10]
[376991997,1754193033724,-655.2,0.00027945,10]
[376991999,1754193033734,-655.2,0.00027945,10]
[376992001,1754193033743,-655.2,0.00027945,10]
[376992007,1754193033908,-655.2,0.00027945,10]
[376992008,1754193033919,-460.0,0.00027945,10]
[376992009,1754193033929,-460.0,0.00027945,10]
[376992010,1754193033939,-460.0,0.00027945,10]
[376992011,1754193033950,-460.0,0.00027945,10]
[376992012,1754193033959,-460.0,0.00027945,10]
[376992013,1754193033969,-460.0,0.00027945,10]
[376992014,1754193033979,-460.0,0.00027945,10]
[376992015,1754193033989,-460.0,0.00027945,10]
[376992016,1754193033998,-460.0,0.00027945,10]
[376992017,1754193034008,-460.0,0.00027945,10]
[376992018,1754193034018,-460.0,0.00027945,10]
[376992019,1754193034028,-460.0,0.00027945,10]
[376992020,1754193034038,-460.0,0.00027945,10]
[376992022,1754193034047,-460.0,0.00027945,10]
[376992024,1754193034057,-460.0,0.00027945,10]
[376992025,1754193034067,-460.0,0.00027945,10]
[376992026,1754193034077,-460.0,0.00027945,10]
[376992027,1754193034087,-460.0,0.00027945,10]
[376992028,1754193034097,-460.0,0.00027945,10]
[376992029,1754193034107,-460.0,0.00027945,10]
[376992030,1754193034117,-318.3240979,0.00027945,10]
[376992031,1754193034126,-500.0,0.00027945,10]
[376992032,1754193034136,-500.0,0.00027945,10]
[376992033,1754193034147,-500.0,0.00027945,10]
[376992035,1754193034156,-500.0,0.00027945,10]
[376992037,1754193034166,-460.0,0.00027945,10]
[376992039,1754193034176,-460.0,0.00027945,10]
[376992040,1754193034185,-462.19495924,0.00027945,10]
[376992041,1754193034194,-465.04072176,0.00027945,10]
[376992042,1754193034204,-410.0,0.00027945,10]
[376992043,1754193034213,-460.0,0.00027945,10]
[376992044,1754193034223,-460.0,0.00027945,10]
[376992045,1754193034232,-460.0,0.00027945,10]
[376992046,1754193034242,-460.0,0.00027945,10]
[376992047,1754193034251,-460.0,0.00027945,10]
[376992048,1754193034261,-460.0,0.00027945,10]
[376992049,1754193034271,-460.0,0.00027945,10]
[376992050,1754193034280,-460.0,0.00027945,10]
[376992051,1754193034289,-460.0,0.00027945,10]
[376992052,1754193034298,-465.17762929,0.00027945,10]
[376992053,1754193034308,-460.0,0.00027945,10]
[376992054,1754193034318,-355.91558255,0.00027945,10]
[376992055,1754193034328,-460.0,0.00027945,10]
[376992056,1754193034337,-460.0,0.00027945,10]
[376992057,1754193034347,-460.0,0.00027945,10]
[376992058,1754193034357,-460.0,0.00027945,10]
[376992059,1754193034366,-460.0,0.00027945,10]
[376992060,1754193034375,-460.0,0.00027945,10]
[376992061,1754193034385,-460.0,0.00027945,10]
[376992062,1754193034396,-460.0,0.00027945,10]
[376992063,1754193034406,-460.0,0.00027945,10]
[376992064,1754193034416,-460.0,0.00027945,10]
[376992065,1754193034426,-460.0,0.00027945,10]
[376992066,1754193034435,-586.85045177,0.00027945,10]
[376992067,1754193034444,-460.0,0.00027945,10]
[376992068,1754193034457,-465.0,0.00027945,10]
[376992069,1754193034471,-460.0,0.00027945,10]
[376992070,1754193034481,-460.0,0.00027945,10]
[376992071,1754193034490,-460.0,0.00027945,10]
[376992072,1754193034500,-460.0,0.00027945,10]
[376992073,1754193034510,-498.65,0.00027945,10]
[376992074,1754193034519,-498.65,0.00027945,10]
[376992075,1754193034528,-460.0,0.00027945,10]
[376992076,1754193034538,-460.0,0.00027945,10]
[376992077,1754193034547,-460.0,0.00027945,10]
[376992078,1754193034557,-460.0,0.00027945,10]